[Event "44th Chess Olympiad Open 2022"]
[Site "Chennai"]
[Date "2022.08.06"]
[Round "8.36"]
[White "Yordanov, Lachezar"]
[Black "Okas, Walter"]
[Result "1/2-1/2"]
[WhiteElo "2316"]
[BlackElo "2191"]
[Annotator "RC"]
[PlyCount "120"]
[EventDate "2022.??.??"]
[TimeControl "60"]

1. d4 {[%emt 0:00:04]} Nf6 {[%emt 0:00:11]} 2. c4 {[%emt 0:00:05]} e6 {[%emt 0:
00:00]} 3. Nc3 {[%emt 0:00:06]} Bb4 {[%emt 0:01:25]} 4. e3 {[%emt 0:00:14]} b6
{[%emt 0:00:21]} 5. Bd3 {[%emt 0:00:10]} Bb7 {[%emt 0:00:14]} 6. Nf3 {[%emt 0:
00:00]} O-O {[%emt 0:00:50]} 7. O-O {[%emt 0:00:04]} c5 {[%emt 0:01:41]} 8. Na4
{[%emt 0:00:05]} cxd4 {[%emt 0:01:29]} 9. a3 {[%emt 0:00:09]} Be7 {[%emt 0:00:
00]} 10. exd4 {[%emt 0:00:05]} d5 {[%emt 0:06:37]} 11. c5 {[%emt 0:02:15]} bxc5
{[%emt 0:01:33]} 12. Nxc5 {[%emt 0:00:49]} Bxc5 {[%emt 0:02:48]} 13. dxc5 {
[%emt 0:00:05]} Nbd7 {[%emt 0:00:53]} 14. b4 {[%emt 0:00:23]} e5 {[%emt 0:00:
00]} 15. Bb5 {[%emt 0:00:50]} Qc7 {[%emt 0:01:42]} 16. Re1 {[%emt 0:01:17]} a6
{[%emt 0:04:09]} 17. Ba4 {[%emt 0:01:11]} h6 {[%emt 0:10:10]} 18. Bb2 {[%emt 0:
00:00]} Rfe8 {[%emt 0:01:04]} 19. c6 {[%emt 0:06:33]} Bxc6 {[%emt 0:00:15]} 20.
Bxc6 {[%emt 0:00:22]} Qxc6 {[%emt 0:00:07]} 21. Nxe5 {[%emt 0:00:05]} Nxe5 {
[%emt 0:05:22]} 22. Bxe5 {[%emt 0:00:10]} Rac8 {[%emt 0:02:40]} 23. h3 {
[%emt 0:01:16]} Ne4 {[%emt 0:03:18]} 24. Bd4 {[%emt 0:00:07]} Qc4 {[%emt 0:00:
00]} 25. Rc1 {[%emt 0:01:25]} Qxc1 {[%emt 0:06:37]} 26. Qxc1 {[%emt 0:00:05]}
Rxc1 {[%emt 0:00:10]} 27. Rxc1 {[%emt 0:00:00]} Nd2 {[%emt 0:00:17]} 28. Rd1 {
[%emt 0:00:06]} Nc4 {[%emt 0:00:26]} 29. a4 {[%emt 0:00:29]} Rb8 {[%emt 0:00:
00]} 30. Bc3 {[%emt 0:00:49]} Rd8 {[%emt 0:03:33]} 31. Kf1 {[%emt 0:00:15]} f6
{[%emt 0:00:16]} 32. Ke2 {[%emt 0:00:07]} Kf7 {[%emt 0:00:15]} 33. Kd3 {
[%emt 0:00:28]} Ke6 {[%emt 0:01:29]} 34. Re1+ {[%emt 0:00:30]} Kd6 {[%emt 0:00:
00]} 35. Bd4 {[%emt 0:00:13]} Ne5+ {[%emt 0:02:54]} 36. Kc3 {[%emt 0:00:52]}
Nd7 {[%emt 0:02:56]} 37. f4 {[%emt 0:05:02]} Rc8+ {[%emt 0:08:02]} 38. Kd3 {
[%emt 0:00:06]} Rc4 {[%emt 0:00:11]} 39. Rb1 {[%emt 0:00:04]} a5 {[%emt 0:00:
00]} 40. bxa5 {[%emt 0:00:11]} Rxa4 {[%emt 0:00:07]} 41. Ra1 {[%emt 0:30:25]}
Rxa1 {[%emt 0:37:15]} 42. Bxa1 {[%emt 0:00:08]} Nc5+ {[%emt 0:00:49]} 43. Ke3 {
[%emt 0:00:56]} Nb3 {[%emt 0:00:54]} 44. Bc3 {[%emt 0:00:10]} Kc5 {[%emt 0:00:
00]} 45. Kd3 {[%emt 0:00:29]} Kb5 {[%emt 0:01:11]} 46. f5 {[%emt 0:01:38]} h5 {
[%emt 0:02:10]} 47. g4 {[%emt 0:00:06]} hxg4 {[%emt 0:00:54]} 48. hxg4 {
[%emt 0:00:04]} Nc5+ {[%emt 0:00:00]} 49. Kd4 {[%emt 0:00:00]} Kc6 {[%emt 0:00:
00]} 50. Bb4 {[%emt 0:00:00]} Nd7 {[%emt 0:00:00]} 51. a6 {[%emt 0:00:00]} Ne5
{[%emt 0:00:00]} 52. a7 {[%emt 0:00:00]} Kb7 {[%emt 0:00:00]} 53. Bc5 {[%emt 0:
00:00]} Nxg4 {[%emt 0:00:00]} 54. Kxd5 {[%emt 0:00:00]} Nh6 {[%emt 0:00:00]}
55. Ke6 {[%emt 0:00:00]} Ka8 {[%emt 0:00:00]} 56. Be3 {[%emt 0:00:00]} Nxf5 {
[%emt 0:00:00]} 57. Kxf5 {[%emt 0:00:00]} Kb7 {[%emt 0:00:00]} 58. Bd4 {
[%emt 0:00:00]} g6+ {[%emt 0:00:00]} 59. Kxg6 {[%emt 0:00:00]} f5 {[%emt 0:00:
00]} 60. Kxf5 {[%emt 0:00:00]} Ka8 {[%emt 0:00:00]} 1/2-1/2

[Event "44th Chess Olympiad Open 2022"]
[Site "Chennai"]
[Date "2022.08.06"]
[Round "8.36"]
[White "Kawuma, Patrick"]
[Black "Stoyanov, Tsvetan"]
[Result "0-1"]
[WhiteElo "2270"]
[BlackElo "2450"]
[Annotator "TA"]
[PlyCount "74"]
[EventDate "2022.??.??"]
[TimeControl "60"]

{[%evp 12,74,0,0,0,-13,-3,-54,-26,-41,0,0,0,0,16,-11,0,0,0,-4,-10,-10,0,-60,0,
-52,-41,-75,-58,-98,-85,-126,-133,-143,-123,-133,-84,-101,-90,-150,-160,-212,
-88,-69,-59,-109,-97,-354,-331,-778,-764,-864,-721,-721,-721,-721,-721,-646,
-736,-708,-701,-771,-754,-747,-730]} 1. Nf3 {[%emt 0:00:19]} d5 {[%emt 0:00:10]
} 2. c4 {[%emt 0:00:07]} d4 {[%emt 0:00:20]} 3. g3 {[%emt 0:00:40]} Nc6 {
[%emt 0:00:19]} 4. Bg2 {[%emt 0:00:18]} e5 {[%emt 0:00:11]} 5. d3 {[%emt 0:00:
00]} Nf6 {[%emt 0:00:47]} 6. O-O {[%emt 0:00:18]} a5 {[%emt 0:01:14]} 7. Na3 {
[%emt 0:04:01]} Bc5 {[%emt 0:09:23] A09: Réti Opening: 1 Nf3 d5 2 c4.} 8. Nc2
{[%emt 0:01:50]} O-O {[%emt 0:01:25]} 9. b3 {[%emt 0:06:16]} (9. e3 $11) 9...
Qe7 {[%emt 0:09:12] [#] Black is slightly better.} 10. Bb2 $146 {[%emt 0:13:25]
} ({Predecessor:} 10. Bg5 h6 11. Bxf6 Qxf6 12. a3 Qe7 13. Qc1 Bg4 14. Re1 f5
15. Nd2 e4 16. f3 {½-½ (31) Stluka,P (2170)-Ptacnik,S (2142) Czech Republic
2008}) 10... Bf5 {[%emt 0:07:40]} 11. Nh4 {[%emt 0:02:40]} Bd7 {[%emt 0:04:24]}
12. e3 {[%emt 0:08:50]} Bg4 {[%emt 0:09:48]} 13. Bf3 {[%emt 0:07:48]} Bh3 {
[%emt 0:06:10]} 14. Bg2 {[%emt 0:03:48]} Bxg2 {[%emt 0:00:43]} 15. Kxg2 {
[%emt 0:00:44]} dxe3 {[%emt 0:04:29]} 16. fxe3 {[%emt 0:00:52]} Rfd8 {[%emt 0:
00:00]} 17. Qe2 {[%emt 0:06:32]} ({White should try} 17. Nf5 $11 Qe6 18. d4)
17... Nb4 {[%emt 0:10:36]} (17... Qe6 $15) 18. Ne1 {[%emt 0:11:25]} (18. Nf5
$11 Qe6 19. d4 exd4 20. Ncxd4 Qe4+ 21. Kg1) 18... Qe6 {[%emt 0:04:36]} 19. a3 {
[%emt 0:03:30]} Nc6 {[%emt 0:05:25]} 20. Nc2 Qg4 {[%emt 0:00:00]} 21. Qd1 {
[%emt 0:08:58]} Qd7 {[%emt 0:00:14] Black is much more active.} 22. b4 {
[%emt 0:12:41]} axb4 {[%emt 0:01:28]} 23. axb4 {[%emt 0:00:03]} Rxa1 {[%emt 0:
00:00]} (23... Bxb4 $142 {Hoping for ...Rxa1.} 24. d4 Rxa1 25. Bxa1 Bf8) 24.
Bxa1 $17 {[%emt 0:00:17]} Bxb4 {[%emt 0:01:43]} 25. d4 {[%emt 0:05:57]} ({
Better is} 25. Nxb4 Nxb4 26. Bxe5) 25... Bd6 {[%emt 0:06:25]} 26. Qf3 {[%emt 0:
00:00] [#]} (26. Kg1 $17 {is a better defense.}) 26... b6 {[%emt 0:03:11]} (
26... Ra8 $1 $19 {[%cal Ra8a2] is more deadly. White must now prevent ...Ra2.}
27. Rf2 Qg4 28. dxe5 Bxe5 29. Bxe5 Nxe5 30. Qxb7 Rd8) 27. Nf5 {[%emt 0:00:24]
[%cal Yf5g7]} e4 {[%emt 0:01:25]} (27... Ne8 $5 {[%cal Rd6f8]}) 28. Qe2 {
[%emt 0:00:35] [#]} (28. Qf2 $15) 28... Ra8 $1 {[%emt 0:00:07]} 29. g4 $2 {
[%emt 0:00:31] This move loses the game for White.} (29. d5 $17 {was called
for.} Ne5 30. Bxe5 Bxe5 31. Nb4) 29... Ra2 $19 {[%emt 0:00:21]} 30. Rf2 $2 {
[%emt 0:00:15]} (30. Bc3 Ne7 31. Nxd6 Nxg4 32. Ra1 (32. Nxe4 $2 Rxc2 33. Bd2
Qe6 $19) 32... Qxd6 33. Kh1 Rxa1+ 34. Bxa1) 30... Nb4 {[%emt 0:00:55] Black is
clearly winning.} 31. Qd1 {[%emt 0:00:46]} Qa4 {[%emt 0:00:35]} 32. g5 {
[%emt 0:00:30]} Rxc2 {[%emt 0:01:39]} 33. Rxc2 {[%emt 0:00:30]} Qxc2+ {[%emt 0:
00:01]} 34. Qxc2 {[%emt 0:00:07]} Nxc2 {[%emt 0:00:01]} 35. gxf6 {[%emt 0:00:
33]} Nxa1 {[%emt 0:00:07]} 36. fxg7 {[%emt 0:00:07]} Nc2 {[%emt 0:00:00]} 37.
h4 {[%emt 0:00:08]} h5 {[%emt 0:00:15] Weighted Error Value: White=0.55/
Black=0.18 (very precise)} 0-1

[Event "44th Chess Olympiad Open 2022"]
[Site "Chennai"]
[Date "2022.08.06"]
[Round "8.36"]
[White "Egesa emmanuel"]
[Black "Tashev, Aleksandar"]
[Result "1/2-1/2"]
[WhiteElo "2152"]
[BlackElo "2262"]
[Annotator "RC"]
[PlyCount "101"]
[EventDate "2022.??.??"]
[TimeControl "60"]

1. d4 {[%emt 0:00:57]} d5 {[%emt 0:00:06]} 2. c4 {[%emt 0:00:13]} e6 {[%emt 0:
00:00]} 3. Nf3 {[%emt 0:00:51]} c6 {[%emt 0:00:28]} 4. cxd5 {[%emt 0:11:39]}
exd5 {[%emt 0:00:13]} 5. Nc3 {[%emt 0:00:37]} Bf5 {[%emt 0:03:04]} 6. Bf4 {
[%emt 0:03:43]} Nf6 {[%emt 0:01:54]} 7. e3 {[%emt 0:01:07]} Qb6 {[%emt 0:01:16]
} 8. Qc1 {[%emt 0:03:12]} h6 {[%emt 0:03:14]} 9. h3 {[%emt 0:00:36]} Be7 {
[%emt 0:03:29]} 10. Be2 {[%emt 0:00:18]} O-O {[%emt 0:01:05]} 11. O-O {[%emt 0:
00:00]} Nbd7 {[%emt 0:01:06]} 12. a3 {[%emt 0:00:43]} a5 {[%emt 0:02:02]} 13.
Ne1 {[%emt 0:07:22]} c5 {[%emt 0:15:46]} 14. Na4 {[%emt 0:19:52]} Qa7 {[%emt 0:
00:00]} 15. dxc5 {[%emt 0:04:24]} Nxc5 {[%emt 0:00:00]} 16. Nxc5 {[%emt 0:00:
00]} Bxc5 {[%emt 0:00:00]} 17. Nf3 {[%emt 0:09:58]} Rfe8 {[%emt 0:00:41]} 18.
Be5 {[%emt 0:02:45]} Rac8 {[%emt 0:01:48]} 19. Qd1 {[%emt 0:18:43]} Ne4 {
[%emt 0:26:01]} 20. Bd4 {[%emt 0:00:00]} Bh7 {[%emt 0:01:01]} 21. Rc1 {[%emt 0:
00:00]} Rcd8 {[%emt 0:03:18]} 22. Rxc5 {[%emt 0:00:00]} Nxc5 {[%emt 0:00:17]}
23. b4 {[%emt 0:00:00]} b6 {[%emt 0:00:31]} 24. bxc5 {[%emt 0:00:00]} bxc5 {
[%emt 0:00:03]} 25. Ba1 {[%emt 0:00:00]} Be4 {[%emt 0:06:26]} 26. Qd2 {[%emt 0:
00:00]} f6 {[%emt 0:03:27]} 27. Rc1 {[%emt 0:00:25]} c4 {[%emt 0:01:00]} 28.
Nd4 {[%emt 0:01:59]} Qc5 {[%emt 0:01:30]} 29. Bc3 {[%emt 0:01:41]} Qxa3 {
[%emt 0:02:46]} 30. Bxa5 {[%emt 0:00:02]} Ra8 {[%emt 0:00:26]} 31. Bc3 {
[%emt 0:00:36]} Qe7 {[%emt 0:02:46]} 32. Bf3 {[%emt 0:00:35]} Bxf3 {[%emt 0:00:
00]} 33. Nxf3 {[%emt 0:00:03]} Red8 {[%emt 0:00:09]} 34. Qd4 {[%emt 0:02:29]}
Qa7 {[%emt 0:01:46]} 35. Qd2 {[%emt 0:04:44]} Qb7 {[%emt 0:01:01]} 36. Qc2 {
[%emt 0:00:33]} Ra6 {[%emt 0:01:28]} 37. Nd4 {[%emt 0:00:45]} Qf7 {[%emt 0:00:
00]} 38. Rb1 {[%emt 0:01:11]} Raa8 {[%emt 0:01:32]} 39. Qf5 {[%emt 0:00:30]}
Qd7 {[%emt 0:01:58]} 40. Qg6 {[%emt 0:00:49]} Qe8 {[%emt 0:00:48]} 41. Qg4 {
[%emt 0:34:06]} Qe4 {[%emt 0:31:23]} 42. Qxe4 {[%emt 0:01:08]} dxe4 {[%emt 0:
00:00]} 43. Rb4 {[%emt 0:00:34]} Rac8 {[%emt 0:02:31]} 44. Rb7 {[%emt 0:00:34]}
Rb8 {[%emt 0:00:58]} 45. Rc7 {[%emt 0:00:00]} Rdc8 {[%emt 0:00:00]} 46. Re7 {
[%emt 0:00:00]} Rb1+ {[%emt 0:00:00]} 47. Kh2 {[%emt 0:00:00]} Rc1 {[%emt 0:00:
00]} 48. Bb2 {[%emt 0:00:00]} Rb1 {[%emt 0:00:00]} 49. Bc3 {[%emt 0:00:00]} Rc1
{[%emt 0:00:00]} 50. Bb2 {[%emt 0:00:00]} Rb1 {[%emt 0:00:00]} 51. Bc3 {
[%emt 0:00:00]} 1/2-1/2

[Event "44th Chess Olympiad Open 2022"]
[Site "Chennai"]
[Date "2022.08.06"]
[Round "8.37"]
[White "Miezis Normunds"]
[Black "Dornbusch, Tatiana"]
[Result "1/2-1/2"]
[WhiteElo "2446"]
[BlackElo "2247"]
[Annotator "TA"]
[PlyCount "121"]
[EventDate "2022.??.??"]
[TimeControl "60"]

{[%evp 19,121,2,7,-5,15,20,19,11,6,0,15,0,37,29,30,28,48,66,62,52,62,41,30,29,
54,33,35,37,77,59,79,54,51,25,30,0,40,-19,-24,-24,22,-16,0,-2,-8,-246,10,15,29,
-47,-49,-77,-33,-140,-150,-126,-132,-127,-139,-97,-47,-66,0,-54,0,0,0,0,0,0,0,
0,13,14,21,18,5,0,0,0,0,-8,-8,-8,-8,-8,0,0,0,-8,0,0,0,0,0,0,0,0,0,0,0,0,0,-29]
} 1. c4 {[%emt 0:00:05]} e5 {[%emt 0:00:25]} 2. Nc3 {[%emt 0:00:33]} Nf6 {
[%emt 0:00:54]} 3. g3 {[%emt 0:00:47]} d5 {[%emt 0:01:55]} 4. cxd5 {[%emt 0:00:
00]} Nxd5 {[%emt 0:00:26]} 5. Bg2 {[%emt 0:00:16]} Nb6 {[%emt 0:00:57]} 6. d3 {
[%emt 0:03:17]} Be7 {[%emt 0:01:11]} 7. Nf3 {[%emt 0:00:49]} Nc6 {[%emt 0:00:
00]} 8. O-O {[%emt 0:00:32]} O-O {[%emt 0:00:15]} 9. a3 {[%emt 0:00:53]} a5 {
[%emt 0:06:24]} 10. Be3 {[%emt 0:01:50]} Be6 {[%emt 0:02:23]} 11. Ne4 {[%emt 0:
00:00] A29: English Opening: Four Knights Variation with 4 g3.} Nd5 {[%emt 0:
00:00]} 12. Bc5 {[%emt 0:01:38]} b6 {[%emt 0:11:01]} 13. Bxe7 {[%emt 0:00:52]}
Ndxe7 {[%emt 0:01:14]} 14. Rc1 {[%emt 0:01:57]} f6 {[%emt 0:02:12] [#]
Prevents Neg5.} 15. Qc2 $146 {[%emt 0:05:41]} ({Predecessor:} 15. Qa4 Qd7 16.
Rfd1 Rac8 17. d4 Nxd4 18. Qxd7 Bxd7 19. Nxd4 exd4 20. Rxd4 Be6 21. Nc3 {
1-0 (31) Belzo,K (2044)-Amer,S (2044) Baku 2016}) 15... Rc8 {[%emt 0:01:16]}
16. e3 {[%emt 0:01:00][%cal Ye2e3,Ye3d4,Yd4d5]} Qd7 {[%emt 0:02:44]} 17. Rfd1 {
[%emt 0:01:00]} Bg4 {[%emt 0:11:46]} 18. Rd2 {[%emt 0:08:07]} Rfd8 {[%emt 0:04:
05]} 19. Nh4 {[%emt 0:06:09][%cal Ye4f6]} Rf8 {[%emt 0:10:59]} 20. d4 {[%emt 0:
04:29]} exd4 {[%emt 0:01:39]} 21. exd4 {[%emt 0:00:30]} Kh8 {[%emt 0:06:37]}
22. d5 {[%emt 0:04:15]} Ne5 {[%emt 0:01:45]} 23. f4 {[%emt 0:00:00]} N5g6 {
[%emt 0:04:40]} 24. Nxg6+ {[%emt 0:01:39]} Nxg6 {[%emt 0:00:21]} 25. Nf2 {
[%emt 0:08:55] White is more active.} Bf5 {[%emt 0:00:26]} 26. Qd1 {[%emt 0:01:
51] Strongly threatening g4.} Ne7 $1 {[%emt 0:01:28]} 27. Rc4 {[%emt 0:16:53]}
Bg6 {[%emt 0:06:10]} 28. Rcd4 {[%emt 0:09:15]} (28. d6 $14 cxd6 29. Rxd6) 28...
Nf5 $11 {[%emt 0:01:54]} 29. Bh3 {[%emt 0:00:26]} Rcd8 {[%emt 0:05:46]} (29...
Rfe8 {deserves consideration.}) 30. R4d3 {[%emt 0:02:46][%cal Yd5d6]} (30. d6
$5 cxd6 31. Rd5 $14) 30... Qe7 {[%emt 0:01:16]} 31. Re2 {[%emt 0:03:19]} Qc5 {
[%emt 0:00:30]} 32. Bg2 $2 {[%emt 0:00:34] [#]} (32. Rc3 $11 {and White stays
safe.} Rxd5 33. Rxc5 Rxd1+ 34. Nxd1 bxc5 35. Bxf5 Bxf5 36. Re7) 32... Rd7 $2 {
[%emt 0:02:19]} (32... Bh5 $19 33. Rc2 Bxd1 34. Rxc5 bxc5 35. Nxd1 Rfe8) 33.
Rc3 {[%emt 0:02:24]} Qb5 {[%emt 0:00:26]} (33... Qd4 $2 34. Rd2 Bh5 35. Rxd4
$18) 34. Rd2 {[%emt 0:01:10]} (34. g4 $11 Nd6 35. Bf1) 34... Re7 $1 $15 {
[%emt 0:01:17]} 35. Be4 {[%emt 0:03:11]} Rfe8 {[%emt 0:00:43] [#] White must
now prevent ...Nd6.} 36. Qf3 {[%emt 0:01:19]} (36. Qf1 $1 $15 Qxf1+ 37. Kxf1)
36... Nd6 $17 {[%emt 0:01:04]} 37. Bd3 {[%emt 0:00:37]} Bxd3 {[%emt 0:00:30]}
38. Qxd3 {[%emt 0:00:36]} Qxd3 {[%emt 0:00:50]} 39. Rdxd3 {[%emt 0:00:10]} Re1+
{[%emt 0:00:24]} 40. Kg2 {[%emt 0:00:06]} R1e2 {[%emt 0:00:00]} (40... R8e2 $15
41. Rxc7 h5) 41. Kf3 {[%emt 0:31:10]} (41. Rxc7 $11 Ne4 42. Rf3) 41... Nb5 {
[%emt 0:11:56]} ({Much weaker is} 41... Rxb2 42. Rxc7 f5 43. Re3 $11) (41...
R8e7 $1 $15 42. b4 Ra2) 42. Rc4 $11 {[%emt 0:00:00] The position is equal.}
R2e7 {[%emt 0:09:25]} 43. Re4 {[%emt 0:00:00]} Nd6 {[%emt 0:00:55]} 44. Rxe7 {
[%emt 0:00:00]} Rxe7 {[%emt 0:00:01] Endgame KRN-KRN} 45. Re3 {[%emt 0:00:00]}
Nf5 {[%emt 0:03:51]} 46. Rxe7 {[%emt 0:00:00]} Nxe7 {[%emt 0:00:02] KN-KN} 47.
Ke4 {[%emt 0:00:00] With the idea Nd1.} Kg8 {[%emt 0:00:21]} 48. g4 {[%emt 0:
00:00]} Kf7 {[%emt 0:01:21]} 49. f5 {[%emt 0:00:00]} Nc8 {[%emt 0:05:15]} 50.
h4 {[%emt 0:00:00]} Nd6+ {[%emt 0:01:02]} 51. Kf4 {[%emt 0:00:00]} Nc4 {
[%emt 0:00:43]} 52. Nd3 {[%emt 0:00:00]} Ke7 {[%emt 0:00:15]} 53. Ke4 {[%emt 0:
00:14]} Kd6 {[%emt 0:01:15]} 54. g5 {[%emt 0:03:08]} Nd2+ {[%emt 0:00:34]} 55.
Ke3 {[%emt 0:00:13]} Nc4+ {[%emt 0:00:35]} 56. Kd4 {[%emt 0:00:18]} Nd2 {
[%emt 0:00:17] aiming for ... fxg5.} 57. Ne1 {[%emt 0:00:59]} Nb3+ {[%emt 0:00:
31]} 58. Kc4 {[%emt 0:01:15]} Nd2+ {[%emt 0:00:26]} 59. Kd4 {[%emt 0:01:26]}
Nb3+ {[%emt 0:00:04]} 60. Kc4 {[%emt 0:01:12]} Nd2+ {[%emt 0:00:07]} 61. Kd4 {
[%emt 0:00:44] Weighted Error Value: White=0.25 (precise) /Black=0.18 (very
precise)} 1/2-1/2

[Event "44th Chess Olympiad Open 2022"]
[Site "Chennai"]
[Date "2022.08.06"]
[Round "8.37"]
[White "Bagheri, Amir"]
[Black "Kantans, Toms"]
[Result "0-1"]
[WhiteElo "2375"]
[BlackElo "2486"]
[Annotator "TA"]
[PlyCount "90"]
[EventDate "2022.??.??"]
[TimeControl "60"]

{[%evp 13,90,16,17,12,14,27,41,36,43,28,42,20,41,23,42,29,38,25,40,-8,5,-46,
-10,-28,-38,-47,-11,-86,-37,-122,-108,-132,-127,-151,-150,-158,-163,-154,-144,
-151,-125,-123,-23,-80,-34,-49,-13,-88,-94,-161,0,-161,-175,-244,-237,-472,
-472,-473,-472,-470,-460,-435,-446,-420,-426,-397,-389,-551,-561,-556,-556,
-550,-549,-549,-549,-541,-536,-498,-458]} 1. d4 {[%emt 0:00:02]} Nf6 {[%emt 0:
00:00]} 2. Nf3 {[%emt 0:00:07]} g6 {[%emt 0:00:16]} 3. Bg5 {[%emt 0:00:19]} Bg7
{[%emt 0:00:07]} 4. Nbd2 {[%emt 0:00:08]} h6 {[%emt 0:00:20]} 5. Bh4 {[%emt 0:
00:00]} d6 {[%emt 0:00:07]} 6. e4 {[%emt 0:00:44]} Nh5 {[%emt 0:00:09]} 7. c3 {
[%emt 0:01:09]} O-O {[%emt 0:00:08]} 8. Bc4 {[%emt 0:06:12] A48:1 d4 Nf6 2 Nf3
g6: Torre, London and Colle Systems.} c5 {[%emt 0:00:11]} 9. d5 {[%emt 0:00:00]
[#] Prevents Nc6.} f5 $146 {[%emt 0:05:56]} ({Predecessor:} 9... Na6 10. O-O
Nc7 11. a4 g5 12. Bg3 e6 13. dxe6 fxe6 14. Ba2 Nf4 15. Qc2 b6 16. Rad1 Ba6 17.
Bc4 Bb7 18. Ba2 Ba6 19. Bc4 Bb7 20. Ba2 {½-½ (20) Cifuentes Parada,R (2428)
-Forcen Esteban,D (2548) Aragon 2020}) 10. exf5 {[%emt 0:00:55] White is
slightly better.} Bxf5 {[%emt 0:00:06]} 11. O-O {[%emt 0:01:31]} Nd7 {[%emt 0:
00:00]} 12. a4 {[%emt 0:14:38]} Qe8 {[%emt 0:06:15]} 13. Re1 {[%emt 0:01:11]}
g5 {[%emt 0:01:11][%cal Yg6g5,Yg5g4]} 14. Bg3 {[%emt 0:00:20] [#] Threatens to
win with Bxd6.} Qf7 {[%emt 0:04:21]} 15. a5 {[%emt 0:16:21]} Bh7 {[%emt 0:13:
22]} 16. Ne4 {[%emt 0:11:55]} (16. h3 $14) 16... Nxg3 $11 {[%emt 0:00:00]} 17.
hxg3 {[%emt 0:08:25]} (17. fxg3 $11 g4 18. Nfd2) 17... g4 $1 $15 {[%emt 0:02:
08]} 18. Nfd2 {[%emt 0:00:12]} (18. Bb5 $5 {[%cal Rb5d7]} Nf6 19. Nfd2 $11 (19.
Nxf6+ Qxf6 20. Nh4 Qxf2+ 21. Kh2 Qxb2 $17)) 18... Ne5 {[%emt 0:00:00]} 19. Qe2
{[%emt 0:01:46]} Kh8 {[%emt 0:02:48]} 20. Rf1 {[%emt 0:02:20]} (20. Ba2 $11)
20... Qh5 {[%emt 0:06:37]} (20... Nxc4 $17 21. Qxc4 Qf5) 21. Rae1 {[%emt 0:11:
46]} (21. Bb3 $15) 21... Nxc4 $17 {[%emt 0:03:10]} 22. Nxc4 {[%emt 0:09:41]}
Qxd5 {[%emt 0:00:07]} 23. Ned2 {[%emt 0:00:07]} Bd3 {[%emt 0:00:00] Black is
more active.} 24. Qxg4 {[%emt 0:01:37]} Qf7 {[%emt 0:02:52]} 25. f3 {[%emt 0:
04:24]} Bxf1 {[%emt 0:06:12]} 26. Kxf1 {[%emt 0:00:06]} Rad8 {[%emt 0:00:13]}
27. Re6 {[%emt 0:00:27]} Bf6 {[%emt 0:05:03]} (27... Rg8 $17 {And now ...Bf8
would win.} 28. Qh3 Bf8) 28. Qh3 {[%emt 0:01:35]} (28. Ne4 $11) 28... Qg7 {
[%emt 0:03:30]} ({Black should try} 28... d5 $17 29. Ne5 Qg7) 29. Ne3 $15 {
[%emt 0:00:17]} d5 {[%emt 0:03:09] White should prevent ...Qh7.} 30. Nf5 {
[%emt 0:00:31]} (30. c4 $1 $11) 30... Qh7 $17 {[%emt 0:00:39]} 31. f4 {[%emt 0:
00:42]} (31. g4 $17) 31... Rc8 $2 {[%emt 0:03:28]} ({Black should play} 31...
h5 $19 {[%cal Yb7b6] Hoping for ...b6!} 32. Kf2 Rd7) 32. Nxh6 $2 {[%emt 0:02:
36] [#]} (32. Nxe7 $1 $11 {and White stays safe.} Rc7 33. Nxd5 Qd3+ 34. Ke1
Qxd5 35. Qxh6+ Kg8 36. Rxf6 Re7+ 37. Kd1 (37. Kf1 Rxf6 38. Qxf6 Qd3+ 39. Kg1
Qe3+ 40. Kh2 Rh7+ 41. Qh4 Rxh4+ $19) 37... Rxf6 38. Qxf6) 32... Rc6 $1 $36 {
[%emt 0:00:35] aiming for ...Rxe6. Black is on the roll.} 33. Rxc6 {[%emt 0:00:
38]} (33. Re2 {is a better defense.}) 33... bxc6 {[%emt 0:00:00]} ({Don't take
} 33... Qd3+ 34. Kg1 bxc6 35. Nf5+ Kg8 36. Qg4+ Kh8 37. Nf3 $16 (37. Qh5+ Kg8
$16)) 34. Qh5 $2 {[%emt 0:00:39]} (34. Nf3) 34... Bg7 {[%emt 0:03:20]} ({
Don't blunder} 34... Qd3+ $2 35. Kf2 Qh7 36. Ke2 $19) 35. Nf7+ {[%emt 0:00:14]}
Kg8 {[%emt 0:00:02]} 36. Qxh7+ {[%emt 0:00:06]} Kxh7 {[%emt 0:00:06] Endgame
KRB-KNN} 37. Ng5+ {[%emt 0:00:04]} Kg8 {[%emt 0:00:05]} 38. Ne6 {[%emt 0:01:17]
} Rb8 {[%emt 0:00:02]} 39. Nxg7 {[%emt 0:00:39]} Kxg7 {[%emt 0:00:06] KR-KN}
40. b3 {[%emt 0:00:18]} (40. Nf3 $142) 40... Kf6 {[%emt 0:01:09] Black is
clearly winning.} 41. Ke2 {[%emt 0:00:00]} e5 {[%emt 0:30:24]} 42. Ke3 {
[%emt 0:00:00]} Rg8 {[%emt 0:00:00]} 43. fxe5+ {[%emt 0:00:00]} Kxe5 {[%emt 0:
00:00]} 44. Kf3 {[%emt 0:00:00]} Rb8 {[%emt 0:00:00]} 45. g4 {[%emt 0:00:00]}
Rb5 {[%emt 0:00:00] Weighted Error Value: White=0.36/Black=0.15 (very precise)}
0-1